bitfinex/quotes_SOLUSD_20220208
["timestamp","ask_amount","ask_price","bid_price","bid_amount"]
[1644338192858,1.26548641,112.3,112.25,13.3636]
[1644338193274,1.26548641,112.31,112.25,13.3636]
[1644338193673,1.26548641,112.32,112.25,13.3636]
[1644338193879,41.73316166,112.31,112.25,13.3636]
[1644338194276,46.18616166,112.31,112.24,4.452]
[1644338194478,49.55940356,112.31,112.21,0.024]
[1644338194677,1.26548641,112.3,112.21,0.024]
[1644338194875,4.454,112.29,112.21,0.024]
[1644338195075,35.44452001,112.28,112.21,0.024]
[1644338195275,35.44452001,112.28,112.2,22.56706501]
[1644338195576,13.3657,112.29,112.21,13.3683]
[1644338195777,13.3657,112.29,112.21,13.6183]
[1644338195978,13.3657,112.29,112.21,13.3683]
[1644338196379,47.57705599,112.28,112.21,13.3683]
[1644338197778,60.94455599,112.28,112.21,13.3683]
[1644338198778,66.6640424,112.28,112.2,13.3936]
[1644338198985,62.2100424,112.28,112.2,13.3696]
[1644338200082,60.94455599,112.28,112.19,23.6783]
[1644338200281,66.6640424,112.28,112.19,37.0482]
[1644338201385,62.2100424,112.28,112.19,37.0482]
[1644338202686,62.2100424,112.28,112.2,0.58354252]
[1644338202887,60.94455599,112.28,112.21,13.3664]
[1644338204888,60.94455599,112.28,112.2,13.3921]
[1644338205190,62.2100424,112.28,112.19,0.024]
[1644338205387,4.454,112.27,112.19,0.024]
[1644338205588,13.3697,112.25,112.19,0.024]
[1644338205791,13.3697,112.25,112.18,26.1801]
[1644338205991,40.96683115,112.24,112.18,26.1801]
[1644338206190,40.96683115,112.24,112.18,13.3701]
[1644338206889,54.33733115,112.24,112.17,13.3713]
[1644338207089,54.33733115,112.24,112.16,12.834]
[1644338207290,13.3705,112.24,112.17,0.3471896]
[1644338207990,13.3696,112.25,112.18,15.38683288]
[1644338208190,13.3696,112.25,112.18,13.3696]
[1644338208391,55.54923695,112.25,112.18,13.3696]
[1644338209792,13.3696,112.25,112.18,13.3696]
[1644338211395,13.3696,112.25,112.17,13.3957]
[1644338211693,13.3731,112.22,112.16,4.48]
[1644338211895,13.3731,112.22,112.16,4.456]
[1644338212094,50.13376991,112.22,112.16,4.456]
[1644338212292,50.13376991,112.22,112.14,44.66364475]
[1644338212492,50.13376991,112.22,112.14,44.63964475]
[1644338212692,50.13376991,112.22,112.16,13.3726]
[1644338212892,13.3731,112.22,112.16,13.3726]
[1644338213092,13.372,112.23,112.16,13.3726]
[1644338213293,1.26548641,112.25,112.17,4.456]
[1644338213494,1.26548641,112.28,112.18,12.81]
[1644338213692,1.26548641,112.28,112.18,15.0775664]
[1644338213892,46.21215188,112.27,112.18,14.8515664]
[1644338214094,46.21215188,112.27,112.19,13.3688]
[1644338214296,47.47763829,112.27,112.19,13.3688]
[1644338214497,60.84473829,112.27,112.19,13.3688]
[1644338214795,1.26548641,112.26,112.18,0.024]
[1644338214994,90.2684207,112.25,112.17,4.479]
[1644338215193,91.53390711,112.25,112.17,0.024]
[1644338215395,91.53390711,112.25,112.16,13.3975]
[1644338215597,48.5093198,112.23,112.16,13.3975]
[1644338215794,13.3744,112.21,112.16,13.3735]
[1644338215995,13.3744,112.21,112.15,13.3748]
[1644338216194,13.3744,112.21,112.13,36.0386]
[1644338216597,13.3744,112.21,112.13,35.5386]
[1644338216794,36.48152436,112.2,112.13,35.5386]
[1644338217001,36.48152436,112.2,112.13,35.5146]
[1644338217195,49.85712436,112.2,112.14,13.3759]
[1644338219598,13.3744,112.21,112.14,15.3934664]
[1644338219797,1.26548641,112.24,112.14,15.4174664]
[1644338219998,1.26548641,112.24,112.14,15.6674664]
[1644338220610,13.373,112.22,112.14,13.6499]
[1644338220805,13.373,112.22,112.14,13.3759]
[1644338220806,42.63415961,112.21,112.14,13.3759]
[1644338221508,5.72248641,112.23,112.14,13.3759]
[1644338221706,1.26548641,112.24,112.15,4.456]
[1644338221906,1.26548641,112.24,112.17,13.3718]
[1644338222108,25.57568641,112.25,112.17,13.3718]
[1644338222306,25.57568641,112.25,112.17,26.1818]
[1644338222506,1.26548641,112.25,112.17,28.1993664]
[1644338222706,11.992,112.26,112.17,28.4493664]
[1644338222907,11.992,112.26,112.18,4.455]
[1644338223109,11.992,112.26,112.2,13.3663]
[1644338223305,11.992,112.26,112.2,26.4263]
[1644338223506,11.992,112.26,112.21,2.0175664]
[1644338223707,11.992,112.26,112.21,2.2675664]
[1644338224108,56.37689165,112.26,112.2,12.81]
[1644338224406,11.992,112.26,112.19,12.81]
[1644338225010,25.3601,112.26,112.19,14.82745441]
[1644338225211,11.992,112.26,112.21,13.3677]
[1644338227215,11.992,112.26,112.21,28.44515441]
[1644338227417,1.26548641,112.28,112.21,28.44515441]
[1644338227712,1.26548641,112.28,112.21,51.94165441]
[1644338227914,35.92295041,112.29,112.21,49.9242]
[1644338228112,35.92295041,112.29,112.21,49.6742]
[1644338228514,1.26548641,112.28,112.21,49.6742]
[1644338228714,35.92295041,112.29,112.21,49.6742]
[1644338228915,1.26548641,112.28,112.21,49.6742]
[1644338229613,1.26548641,112.28,112.21,51.94165441]
[1644338229814,1.26548641,112.29,112.21,51.94165441]
[1644338230514,39.19633153,112.29,112.21,51.94165441]
[1644338231217,39.19633153,112.29,112.21,65.63065441]
[1644338231819,13.3643,112.29,112.21,65.63065441]
[1644338232016,13.3643,112.29,112.21,70.08465441]
[1644338233317,44.93038284,112.28,112.21,70.08465441]
[1644338233616,14.62888641,112.3,112.21,70.08465441]
[1644338233820,2.10775549,112.37,112.21,70.08465441]
[1644338233821,1.26548641,112.31,112.21,123.47465441]
[1644338234129,1.31700236,112.36,112.3,2.01745441]
[1644338234336,0.90283988,112.38,112.3,2.70745441]
[1644338234537,12.81,112.46,112.3,2.70745441]
[1644338234538,3.79035677,112.45,112.31,12.81]
[1644338234836,4.449,112.44,112.34,0.44]
[1644338235036,2.52819737,112.47,112.34,0.44]
[1644338235037,4.448,112.46,112.36,13.3457]
[1644338235240,3.79035677,112.48,112.36,13.5957]
[1644338235437,3.79035677,112.48,112.37,12.81]
[1644338235635,37.96685114,112.48,112.37,14.82745441]
[1644338235837,37.96685114,112.48,112.38,2.01745441]
[1644338236038,37.96685114,112.48,112.4,13.343]
[1644338236240,37.96685114,112.48,112.4,26.153]
[1644338237038,37.96685114,112.48,112.4,38.552]
[1644338237437,37.96685114,112.48,112.4,38.302]
[1644338237642,37.96685114,112.48,112.4,12.81]
[1644338237842,42.75619608,112.46,112.36,54.78296588]
[1644338238039,42.75619608,112.46,112.37,12.81]
[1644338238840,42.75619608,112.46,112.38,15.36425441]
[1644338239041,42.75619608,112.46,112.38,28.17425441]
[1644338239247,42.75619608,112.46,112.38,26.1568]
[1644338239741,42.75619608,112.46,112.38,12.81]
[1644338239943,34.27381393,112.44,112.36,17.7959]
[1644338240243,44.4962,112.48,112.36,30.6059]
[1644338240244,35.89339165,112.42,112.36,30.6059]
[1644338240446,35.89339165,112.42,112.36,17.257]
[1644338240841,12.81,112.48,112.36,17.257]
[1644338241045,48.9494,112.47,112.36,17.257]
[1644338241242,4.447,112.47,112.36,17.257]
[1644338241445,4.447,112.49,112.36,17.257]
[1644338242043,41.81328395,112.48,112.36,17.257]
[1644338242342,55.02344896,112.46,112.36,30.6065]
[1644338242543,55.02344896,112.46,112.36,26.1595]
[1644338243642,45.28549144,112.44,112.36,26.1595]
[1644338247747,58.63569144,112.44,112.36,26.1595]
[1644338247948,58.63569144,112.44,112.36,12.81]
[1644338251747,58.63569144,112.44,112.36,26.1595]
[1644338253252,58.63569144,112.44,112.36,28.17695441]
[1644338253451,58.63569144,112.44,112.36,14.82745441]
[1644338253657,58.63569144,112.44,112.36,12.81]
[1644338255755,58.63569144,112.44,112.34,12.81]
[1644338255958,58.63569144,112.44,112.33,17.8005]
[1644338255959,4.448,112.43,112.33,4.448]
[1644338256159,13.3572,112.4,112.33,4.448]
[1644338256360,35.93174906,112.39,112.28,12.81]
[1644338256555,40.38174906,112.39,112.29,4.45]
[1644338256754,40.38174906,112.39,112.29,17.26]
[1644338257054,35.93174906,112.39,112.29,17.26]
[1644338257254,35.93174906,112.39,112.29,19.27745441]
[1644338257454,35.93174906,112.39,112.29,25.27745441]
[1644338257856,13.3561,112.38,112.3,13.3567]
[1644338258055,35.93174906,112.39,112.3,13.3567]
[1644338258256,35.28915459,112.37,112.3,13.6067]
[1644338258459,35.28915459,112.37,112.3,17.8067]
[1644338259057,35.28915459,112.37,112.3,13.3567]
[1644338261562,48.64605459,112.37,112.3,13.3567]
[1644338265366,13.3569,112.37,112.3,13.3567]
[1644338265566,13.3549,112.39,112.3,15.37415441]
[1644338265966,13.3549,112.39,112.3,34.18415441]
[1644338266571,52.33161367,112.39,112.3,28.18415441]
[1644338266969,52.33161367,112.39,112.3,34.18415441]
[1644338267569,52.33161367,112.39,112.3,28.18415441]
[1644338267869,52.33161367,112.39,112.3,26.1667]
[1644338268088,52.33161367,112.39,112.3,32.1667]
[1644338268288,52.33161367,112.39,112.3,26.1667]
[1644338269389,13.3575,112.36,112.3,26.1667]
[1644338271596,45.35167893,112.35,112.3,26.1667]
[1644338271797,13.3575,112.36,112.3,26.1667]
[1644338271995,13.3563,112.37,112.3,13.3567]
[1644338272796,87.55930298,112.4,112.31,15.37235441]
[1644338272996,13.3549,112.38,112.31,15.37235441]
[1644338273198,13.3549,112.38,112.32,6.46236992]
[1644338273498,13.3549,112.38,112.32,4.45]
[1644338273702,13.3549,112.38,112.3,6.46236992]
[1644338273898,13.3549,112.38,112.3,12.71236992]
[1644338274099,13.3549,112.38,112.3,12.46236992]
[1644338274601,13.3549,112.38,112.3,12.71236992]
[1644338274800,13.3549,112.38,112.32,13.3543]
[1644338276204,13.3549,112.38,112.31,13.3561]
[1644338276803,13.3549,112.38,112.3,4.45]
[1644338277010,35.93016692,112.36,112.25,25.85474596]
[1644338277204,35.93016692,112.36,112.26,13.3611]
[1644338277205,13.3601,112.34,112.26,13.3611]
[1644338278004,13.3601,112.34,112.26,15.37346992]
[1644338278204,13.3601,112.34,112.26,21.62346992]
[1644338279806,13.3584,112.35,112.26,21.62346992]
[1644338280408,13.3584,112.35,112.26,34.43346992]
[1644338280606,44.525,112.39,112.26,34.43346992]
[1644338280807,2.5332114,112.38,112.27,47.2465]
[1644338281008,13.3561,112.37,112.3,13.3554]
[1644338281208,13.3561,112.37,112.3,24.5794]
[1644338281409,13.3561,112.37,112.3,26.59176992]
[1644338281606,23.064,112.4,112.3,26.59176992]
[1644338281812,44.5164,112.41,112.3,26.59176992]
[1644338282010,15.88560136,112.4,112.3,45.40176992]
[1644338282207,63.95429487,112.43,112.31,47.7214]
[1644338282208,47.3886,112.43,112.31,47.7214]
[1644338282409,2.5342359,112.42,112.34,13.3508]
[1644338282808,45.22779445,112.41,112.34,13.3508]
[1644338283009,2.5342359,112.42,112.34,13.3508]
[1644338283208,47.3886,112.43,112.34,13.3508]
[1644338283509,2.53396307,112.42,112.34,13.3508]
[1644338283708,13.3514,112.41,112.34,13.3508]
[1644338284411,4.448,112.43,112.34,13.3508]
[1644338284614,3.75569487,112.46,112.38,13.347]
[1644338284811,6.28956164,112.46,112.38,13.597]
[1644338285010,2.53386677,112.45,112.38,15.60936992]
[1644338285411,2.53386677,112.46,112.38,28.41936992]
[1644338285610,2.53386677,112.47,112.38,28.41936992]
[1644338286210,2.53386677,112.47,112.38,34.41936992]
[1644338286412,2.53386677,112.47,112.38,28.41936992]
[1644338286813,15.87816677,112.47,112.38,26.407]
[1644338287013,13.3443,112.47,112.38,26.157]
[1644338287215,2.52740885,112.46,112.38,26.157]
[1644338287413,4.447,112.45,112.38,26.157]
[1644338287612,40.4166542,112.44,112.38,26.157]
[1644338287811,40.4166542,112.44,112.38,13.347]
[1644338288214,53.7647542,112.44,112.35,58.3872]
[1644338288414,4.448,112.43,112.34,12.81]
[1644338288814,4.448,112.43,112.35,0.1098386]
[1644338289014,40.4166542,112.44,112.35,0.1098386]
[1644338290719,13.3502,112.42,112.35,13.4614386]
[1644338290918,13.3502,112.42,112.35,0.1098386]
[1644338291918,34.79342718,112.4,112.35,0.1098386]
[1644338292120,48.14732718,112.4,112.35,0.1098386]
[1644338292520,48.14732718,112.4,112.34,0.1098386]
[1644338292921,13.3539,112.4,112.34,13.4628386]
[1644338293922,35.60498461,112.39,112.34,13.4628386]
[1644338294522,13.3534,112.39,112.34,13.4628386]
[1644338295025,44.5129,112.42,112.34,13.4628386]
[1644338295423,40.84130209,112.41,112.34,13.4628386]
[1644338296022,13.3525,112.4,112.34,13.4628386]
[1644338296423,44.5042,112.44,112.34,13.4628386]
[1644338296623,2.52700933,112.43,112.34,13.4628386]
[1644338296823,2.52700933,112.43,112.34,15.47520852]
[1644338297025,4.449,112.45,112.34,21.72520852]
[1644338297224,87.1932294,112.46,112.34,34.53520852]
[1644338297426,2.52677553,112.44,112.34,34.53520852]
[1644338297727,42.6968294,112.46,112.34,34.53520852]
[1644338298724,13.3462,112.45,112.34,34.53520852]
[1644338298926,13.3462,112.45,112.34,38.98320852]
[1644338301227,13.3462,112.45,112.34,32.73320852]
[1644338301627,13.3462,112.45,112.34,30.7208386]
[1644338302052,4.448,112.44,112.34,26.2728386]
[1644338302252,13.3503,112.42,112.34,26.2728386]
[1644338302451,35.79672189,112.41,112.34,26.2728386]
[1644338303853,13.3503,112.42,112.34,32.73420852]
[1644338304053,13.3503,112.42,112.34,34.28520852]
[1644338304253,13.3503,112.42,112.35,4.449]
[1644338304555,13.3503,112.42,112.36,13.3497]
[1644338304955,13.3503,112.42,112.36,13.4595386]
[1644338305255,4.449,112.44,112.36,13.4595386]
[1644338305460,4.448,112.46,112.36,13.4595386]
[1644338305858,2.51782034,112.45,112.36,13.4595386]
[1644338306056,47.8301587,112.45,112.36,13.4595386]
[1644338306256,45.31233836,112.45,112.36,13.4595386]
[1644338306756,13.3483,112.44,112.36,13.4595386]
[1644338307559,13.3483,112.44,112.36,15.72190852]
[1644338307758,13.3483,112.44,112.37,4.448]
[1644338307961,13.3483,112.44,112.39,13.3467]
[1644338308558,58.65873836,112.45,112.39,13.3467]
[1644338311359,58.65873836,112.45,112.4,0.1098386]
[1644338312963,2.52445551,112.44,112.4,0.1098386]
[1644338313162,13.3526,112.42,112.4,0.1098386]
[1644338313369,44.20513685,112.41,112.4,0.1098386]
[1644338314365,44.20513685,112.41,112.33,0.1098386]
[1644338314766,57.55953685,112.41,112.33,13.4642386]
[1644338316866,62.00853685,112.41,112.33,13.4642386]
[1644338318665,57.55953685,112.41,112.33,13.4642386]
[1644338321769,57.55953685,112.41,112.33,0.1098386]
[1644338321968,6.97306821,112.4,112.33,0.1098386]
[1644338322167,13.3559,112.38,112.32,0.1098386]
[1644338322367,37.46902381,112.37,112.32,0.1098386]
[1644338323771,50.82522381,112.37,112.32,13.4657386]
[1644338324071,50.82522381,112.37,112.32,0.1098386]
[1644338326775,50.82522381,112.37,112.3,0.1098386]
[1644338327774,50.82522381,112.37,112.3,13.4676386]
[1644338327994,50.82522381,112.37,112.3,19.4676386]
[1644338328575,50.82522381,112.37,112.3,13.4676386]
[1644338328778,50.82522381,112.37,112.3,0.1098386]
[1644338328979,6.55775549,112.36,112.3,0.1098386]
[1644338329177,13.3624,112.35,112.3,0.1098386]
[1644338329777,13.3624,112.35,112.26,0.1098386]
[1644338330779,13.3624,112.35,112.26,13.4722386]
[1644338330979,136.50335767,112.33,112.23,57.785]
[1644338331188,13.3622,112.32,112.2,22.7245]
[1644338331397,25.2622,112.32,112.19,13.4419]
[1644338331585,4.454,112.31,112.18,12.834]
[1644338331787,6.56175549,112.31,112.17,13.371]
[1644338331991,37.56198705,112.29,112.17,13.395]
[1644338332183,17.8253,112.28,112.18,0.024]
[1644338332484,13.3703,112.28,112.18,2.03636992]
[1644338332683,82.12938705,112.29,112.18,2.03636992]
[1644338332684,37.56198705,112.29,112.19,17.265]
[1644338332883,37.56198705,112.29,112.19,33.36000073]
[1644338333083,37.56198705,112.29,112.2,2.01236992]
[1644338333384,50.92768705,112.29,112.2,2.01236992]
[1644338333583,50.92768705,112.29,112.2,2.26236992]
[1644338333987,50.92768705,112.29,112.21,2.00278787]
[1644338334284,50.92768705,112.29,112.21,15.36958787]
[1644338335508,50.2113521,112.29,112.21,15.36958787]
[1644338336904,50.2113521,112.29,112.21,13.3668]
[1644338337302,13.3657,112.29,112.21,13.3668]
[1644338337604,44.5588,112.3,112.21,28.42958787]
[1644338337605,13.3638,112.3,112.21,28.42958787]
[1644338337903,11.9,112.32,112.21,34.42958787]
[1644338338305,11.9,112.32,112.25,13.3622]
[1644338338503,11.9,112.32,112.25,13.87708037]
[1644338338704,11.9,112.32,112.25,15.61498787]
[1644338338904,25.2616,112.32,112.23,12.81]
[1644338339107,29.7136,112.32,112.23,12.81]
[1644338339406,29.7136,112.32,112.22,25.11298787]
[1644338339603,25.2616,112.32,112.23,4.453]
[1644338339802,25.2616,112.32,112.24,13.3634]
[1644338339803,52.38812577,112.31,112.24,13.3634]
[1644338340805,13.3636,112.3,112.24,13.3634]
[1644338341108,39.2915972,112.29,112.24,13.3634]
[1644338341505,13.3636,112.3,112.24,13.3634]
[1644338341907,13.3625,112.31,112.24,15.36618787]
[1644338342110,11.9,112.32,112.24,15.61618787]
[1644338342308,11.9,112.32,112.24,34.42618787]
[1644338342508,40.32928086,112.34,112.25,0.33075128]
[1644338342709,40.32928086,112.34,112.27,13.3602]
[1644338342910,44.5378,112.35,112.27,13.3602]
[1644338343206,13.3591,112.34,112.27,13.3602]
[1644338343806,59.51204805,112.34,112.27,13.3602]
[1644338344008,59.51204805,112.34,112.26,4.452]
[1644338344211,4.452,112.33,112.25,48.9689]
[1644338344407,13.3628,112.31,112.25,54.9689]
[1644338345008,13.3628,112.31,112.26,4.52865895]
[1644338345211,13.3628,112.31,112.25,54.9689]
[1644338345809,13.3628,112.31,112.25,48.9689]
[1644338346411,13.3628,112.31,112.24,4.4895598]
[1644338348510,13.3628,112.31,112.23,4.453]
[1644338348714,13.3628,112.31,112.22,73.1665]
[1644338349513,35.68520774,112.3,112.22,77.29409086]
[1644338349710,13.3646,112.3,112.23,4.453]
[1644338349910,13.3646,112.3,112.22,77.29409086]
[1644338353018,4.453,112.32,112.22,77.29409086]
[1644338353218,39.65058229,112.36,112.22,85.54687873]
[1644338353219,69.3495,112.35,112.22,85.54687873]
[1644338354018,41.68674466,112.34,112.22,85.54687873]
[1644338354220,41.68674466,112.34,112.23,4.453]
[1644338354420,13.3612,112.32,112.24,12.81]
[1644338354621,39.06724345,112.31,112.24,0.70407385]
[1644338355019,39.06724345,112.31,112.23,13.06]
[1644338355218,39.06724345,112.31,112.23,17.263]
[1644338355424,52.42984345,112.31,112.23,17.263]
[1644338355619,52.42984345,112.31,112.23,12.81]
[1644338357419,53.68870249,112.31,112.23,12.81]
[1644338359120,13.3661,112.28,112.23,12.81]
[1644338359526,13.3661,112.28,112.22,47.0158]
[1644338360123,57.63071021,112.28,112.22,47.0158]
[1644338360525,13.3661,112.28,112.22,60.3811]
[1644338361126,1.25885904,112.31,112.22,62.63388787]
[1644338361326,26.25005904,112.32,112.22,62.63388787]
[1644338361525,46.8330569,112.31,112.22,62.63388787]
[1644338362126,48.09191594,112.31,112.22,62.38388787]
[1644338362527,48.09191594,112.31,112.22,66.07685416]
[1644338362726,13.3637,112.3,112.22,66.07685416]
[1644338363628,13.3637,112.3,112.22,66.32685416]
[1644338364229,13.3637,112.3,112.22,72.32685416]
[1644338364429,13.3637,112.3,112.22,66.32685416]
[1644338364629,13.3637,112.3,112.22,66.07685416]
[1644338365030,13.3637,112.3,112.23,4.453]
[1644338365231,13.3637,112.3,112.23,4.477]
[1644338365430,13.3637,112.3,112.23,19.84318787]
[1644338365630,13.3637,112.3,112.23,20.09318787]
[1644338365830,13.3623,112.31,112.23,32.90318787]
[1644338366232,13.3623,112.31,112.24,1.13869842]
[1644338366430,13.3623,112.31,112.25,13.3616]
[1644338366633,1.25885904,112.32,112.25,13.3616]
[1644338366831,1.25885904,112.32,112.25,13.6116]
[1644338367033,1.25885904,112.32,112.26,2.00278787]
[1644338367232,14.61875904,112.33,112.26,2.25278787]
[1644338367436,1.25885904,112.33,112.27,3.69296629]
[1644338367633,1.25885904,112.33,112.27,19.05495416]
[1644338367933,1.25885904,112.34,112.27,19.30495416]
[1644338368331,47.73014326,112.34,112.27,19.30495416]
[1644338368532,47.73014326,112.34,112.27,13.3592]
[1644338368733,1.25885904,112.33,112.26,50.5485]
[1644338369434,47.73014326,112.34,112.26,55.31215459]
[1644338369632,47.73014326,112.34,112.26,65.76415459]
[1644338369832,14.61765904,112.34,112.26,63.31494246]
[1644338371134,14.61765904,112.34,112.27,4.452]
[1644338371332,14.61765904,112.34,112.27,17.8108]
[1644338372638,14.61765904,112.34,112.27,13.3588]
[1644338373339,35.14047226,112.33,112.27,13.3588]
[1644338373538,48.50057226,112.33,112.27,13.3588]
[1644338373739,49.7594313,112.33,112.26,56.549]
[1644338374941,14.61895904,112.33,112.26,56.549]
[1644338375840,14.61765904,112.34,112.26,58.80178787]
[1644338376040,41.60254259,112.33,112.26,63.25378787]
[1644338376248,41.60254259,112.33,112.26,56.549]
[1644338377060,56.22110163,112.33,112.26,56.549]
[1644338377665,54.96224259,112.33,112.26,56.799]
[1644338378061,54.96224259,112.33,112.26,56.549]
[1644338378563,54.96224259,112.33,112.26,58.80178787]
[1644338378765,54.96224259,112.33,112.26,56.549]
[1644338379965,54.96224259,112.33,112.26,61.001]
[1644338380966,13.3597,112.33,112.26,61.001]
[1644338381167,14.61745904,112.34,112.26,63.00378787]
[1644338381468,1.25885904,112.35,112.26,63.25378787]
[1644338381669,1.25885904,112.35,112.26,86.58608787]
[1644338381867,1.25885904,112.36,112.26,86.58608787]
[1644338382567,1.25885904,112.37,112.26,100.66871868]
[1644338382771,1.25885904,112.37,112.26,154.05871868]
[1644338383171,1.25885904,112.38,112.26,155.32264381]
[1644338383371,1.25885904,112.38,112.27,22.5425043]
[1644338383571,14.61255904,112.38,112.3,13.3536]
[1644338383772,14.61255904,112.38,112.3,26.4136]
[1644338383972,14.61255904,112.38,112.3,26.334497]
[1644338384971,14.61255904,112.38,112.3,30.784497]
[1644338385871,13.3537,112.38,112.3,30.784497]
[1644338386071,13.3537,112.38,112.3,26.334497]
[1644338386271,38.1839595,112.37,112.3,26.084497]
[1644338386672,13.3537,112.38,112.3,26.084497]
[1644338386873,13.3537,112.38,112.3,36.784497]
[1644338387472,13.3537,112.38,112.3,38.78728487]
[1644338388574,13.3537,112.38,112.3,34.33728487]
[1644338388774,13.3537,112.38,112.3,47.53998487]
[1644338388974,44.22892071,112.37,112.3,34.08728487]
[1644338389176,57.58372071,112.37,112.3,26.084497]
[1644338390876,5.70885904,112.39,112.3,26.084497]
[1644338391078,54.06055904,112.4,112.33,13.3518]
[1644338391276,54.06055904,112.4,112.33,13.6018]
[1644338391277,4.45,112.4,112.33,13.6018]
[1644338391478,1.25885904,112.41,112.34,6.45178787]
[1644338391679,1.25885904,112.41,112.34,2.00278787]
[1644338391881,1.25885904,112.41,112.32,12.81]
[1644338392176,1.25885904,112.41,112.32,13.06]
[1644338392578,1.25885904,112.41,112.32,21.06278787]
[1644338392778,14.60905904,112.41,112.35,13.351]
[1644338392980,13.3502,112.41,112.35,13.351]
[1644338393282,14.60905904,112.41,112.35,13.351]
[1644338393478,13.3502,112.41,112.35,13.351]
[1644338393677,14.60905904,112.41,112.35,13.351]
[1644338393876,13.3502,112.41,112.35,13.351]
[1644338395477,52.28259702,112.41,112.35,13.351]
[1644338395877,13.3502,112.41,112.35,13.351]
[1644338396879,55.5071997,112.41,112.35,13.351]
[1644338397581,55.5071997,112.41,112.33,24.53]
[1644338397781,43.66831706,112.39,112.34,13.353]
[1644338397981,57.02191706,112.39,112.32,12.81]
[1644338398185,57.02191706,112.39,112.31,73.2529]
[1644338398581,13.3536,112.39,112.32,2.00278787]
[1644338398881,13.3536,112.39,112.33,13.3543]
[1644338399483,39.74768192,112.38,112.33,13.3543]
[1644338399886,53.10178192,112.38,112.33,13.3543]
[1644338401084,53.10178192,112.38,112.32,13.3555]
[1644338403287,53.10178192,112.38,112.31,13.3564]
[1644338403489,57.55178192,112.38,112.31,13.3564]
[1644338403686,58.81064096,112.38,112.31,13.3564]
[1644338404086,57.55178192,112.38,112.31,13.3564]
[1644338404488,53.10178192,112.38,112.31,13.3564]
[1644338405289,54.36064096,112.38,112.31,13.3564]
[1644338407291,48.79532273,112.36,112.31,13.3564]
[1644338407591,62.15202273,112.36,112.28,12.834]
[1644338407791,67.86088177,112.36,112.28,0.024]
[1644338407992,67.86088177,112.36,112.26,12.81]
[1644338407993,67.86088177,112.36,112.27,0.024]
[1644338408193,23.2579,112.35,112.25,0.024]
[1644338408394,4.452,112.34,112.25,0.024]
[1644338408595,46.39574465,112.33,112.25,0.024]
[1644338409193,13.3623,112.33,112.26,13.3618]
[1644338409393,13.3623,112.33,112.26,15.38858787]
[1644338409593,13.3623,112.33,112.27,4.452]
[1644338409793,13.3623,112.33,112.27,6.70478787]
[1644338410199,13.3623,112.33,112.27,6.45478787]
[1644338410394,13.3623,112.33,112.27,5.9981618]
[1644338410605,13.3583,112.34,112.28,13.3587]
[1644338410793,13.3583,112.34,112.28,13.3827]
[1644338410995,13.3583,112.34,112.28,13.3587]
[1644338411894,50.52934597,112.33,112.28,13.3587]
[1644338412095,50.52934597,112.33,112.28,13.3827]
[1644338412295,50.52934597,112.33,112.28,13.3587]
[1644338413899,13.3592,112.33,112.28,13.3587]
[1644338414098,13.3584,112.34,112.28,13.3587]
[1644338414398,13.3584,112.34,112.28,13.6327]
[1644338414597,13.3584,112.34,112.28,13.6087]
[1644338415897,13.3584,112.34,112.28,13.3587]
[1644338416999,37.11096834,112.33,112.28,13.3587]
[1644338418124,50.47006834,112.33,112.28,13.3587]
[1644338418321,50.47006834,112.33,112.27,0.024]
[1644338418523,50.47006834,112.33,112.26,6.0]
[1644338418721,50.47006834,112.33,112.26,0.024]
[1644338418922,50.47006834,112.33,112.25,29.6719]
[1644338419823,50.47006834,112.33,112.26,13.3622]
[1644338420022,50.47006834,112.33,112.26,13.3862]
[1644338420223,50.47006834,112.33,112.26,19.3862]
[1644338423924,50.47006834,112.33,112.26,23.23430203]
[1644338423925,13.3591,112.33,112.26,23.23430203]
[1644338425125,13.3584,112.34,112.28,14.34256268]
[1644338425329,1.25885904,112.37,112.28,14.61656268]
[1644338425525,1.25885904,112.38,112.29,2.00292835]
[1644338425724,1.25885904,112.38,112.29,38.82782835]